Cogmind - Beta 13 @@@ ROGUE MODE // 2024.04.03 @ 00:53:26 // Halloween2020/ForbiddenLore Player: Mogwok Wargfriend Result: Self-destructed Performance ------------- Evolutions (4) 2000 Regions Visited (6) 1200 Robots Destroyed (108) 540 Value Destroyed (2957) 2957 Prototype IDs (9) 180 Alien Tech Used (0) 0 Bonus (92) 92 TOTAL SCORE: 6969 Bonus ------- High Alert Combat Kills 72 Follower Combat Kills 20 Cogmind --------- Core Integrity 69/850 Matter 149/300 Energy 20/200 System Corruption 13% Temperature Cool (0) Movement Core (200) Ox3 Location -6/Waste Parts ------- > --- POWER (1) -------- Cold Fusion Reactor > --- PROPULSION (4) --- (None) > --- UTILITY (8) ------ (None) > --- WEAPON (2) ------- (None) > --- INVENTORY (5) ---- Medium Treads Improved Heat Sink Peak State ------------ > --- POWER ------------ Cold Fusion Reactor > --- PROPULSION ------- Armored Treads Armored Treads Wheel Wheel > --- UTILITY ---------- Improved Cooling System Medium Storage Unit Active Sensor Suite Graphene Brace Improved Shield Generator Hacking Suite > --- WEAPON ----------- Precision Beam Rifle Precision Beam Rifle > --- INVENTORY -------- Cold Fusion Reactor Cold Fusion Reactor Medium Treads Wheel Improved Heat Sink Improved Heat Sink Medium Matter Pod Shock Rifle Heavy Ion Cannon [Rating: 71] Favorites ----------- Power Deuterium Engine Engine Deuterium Engine Power Core Light Fission Core Reactor Cold Fusion Reactor Propulsion Wheel Treads Armored Treads Leg Aluminum Leg Wheel Wheel Hover Unit Aerolev Unit Utility Medium Storage Unit Device Improved Heat Sink Storage Medium Storage Unit Processor Targeting Computer Hackware Hacking Suite Protection Core Shielding Weapon Precision Beam Rifle Energy Gun Precision Beam Rifle Energy Cannon Heavy Ion Cannon Ballistic Gun Light Assault Rifle Ballistic Cannon Heavy Assault Cannon Build | -11 -10 -9 -8 -7 -6 -6 ------- Run | Yrd Mat Mat Mat Fac Fac Was Slots Evolved 8 | . . 2 2 2 2 . Power . | . . . . . . . Propulsion 2 | . . . 1 . 1 . Utility 6 | . . 2 1 2 1 . Weapon . | . . . . . . . Parts Attached 93 | 6 8 13 47 5 7 7 Power 11 | 1 2 2 3 . 2 1 Engine 8 | 1 2 2 3 . . . Core 1 | . . . . . 1 . Reactor 2 | . . . . . 1 1 Propulsion 25 | 2 1 2 17 . 1 2 Treads 3 | . . . 3 . . . Leg 1 | . . . 1 . . . Wheel 13 | 2 1 2 5 . 1 2 Hover 8 | . . . 8 . . . Flight . | . . . . . . . Utility 31 | 1 3 6 14 5 2 . Device 18 | . 1 3 9 4 1 . Storage 6 | 1 2 . 2 1 . . Processor 1 | . . . 1 . . . Hackware 1 | . . . . . 1 . Protection 5 | . . 3 2 . . . Artifact . | . . . . . . . Weapon 26 | 2 2 3 13 . 2 4 Energy Gun 16 | 1 2 2 7 . 2 2 Energy Cannon 1 | . . . . . . 1 Ballistic Gun 5 | 1 . 1 2 . . 1 Ballistic Cannon 4 | . . . 4 . . . Launcher . | . . . . . . . Special Weapon . | . . . . . . . Impact Weapon . | . . . . . . . Slashing Weapon . | . . . . . . . Piercing Weapon . | . . . . . . . Special Melee Weapon . | . . . . . . . Unidentified Prototypes 7 | . . . 5 . 1 1 Parts Lost 30 | . 1 2 15 . 2 10 Power 2 | . 1 . 1 . . . Propulsion 13 | . . 2 6 . . 5 Utility 8 | . . . 4 . 1 3 Weapon 7 | . . . 4 . 1 2 Highest Loss Streak 5 | . 1 1 5 . 2 4 To Critical Strikes 2 | . . . . . . 2 Average Slot Usage (%) 87 | . 96 96 94 75 78 31 Engine 7 | . 13 11 9 7 . . Treads 6 | . . . 3 15 13 1 Wheel 14 | . 28 21 12 7 13 7 Hover 4 | . . . 10 . . . Device 21 | . 8 20 19 29 26 10 Storage 9 | . 16 11 9 7 6 2 Protection 6 | . . 9 12 . . . Energy Gun 7 | . 13 11 7 . 8 . Ballistic Gun 3 | . 14 11 1 . . . Ballistic Cannon 4 | . . . 6 7 1 . Naked Turns 16 | . . . . . . 16 Heaviest Build 43 | 10 20 31 38 40 43 37 Greatest Support 32 | 20 20 20 32 10 20 30 Greatest Overweight (x) 4 | 2 . 2 4 3 2 2 Average Overweight (x) 1 | . . . 1 3 1 . Largest Inventory Capacity 10 | 8 10 10 10 10 10 10 Average Capacity 9 | 7 9 10 10 10 10 6 Most Carried 10 | 6 10 10 10 10 10 9 Average Carried 9 | 2 8 9 9 9 7 6 Final Capacity 10 | 8 10 10 10 10 10 5 Final Carried 10 | 6 10 10 10 10 9 2 Class Distribution -------------------- 38% | Scavenger-Skirmisher 31% | Scavenger-Mutant 29% | Mutant Dominant Class ---------------- Mutant | -10/Materials Scavenger-Mutant | -9/Materials Scavenger-Mutant | -8/Materials Scavenger-Skirmisher | -7/Factory Scavenger-Skirmisher | -6/Factory Mutant | -6/Waste Resources | -11 -10 -9 -8 -7 -6 -6 ----------- Run | Yrd Mat Mat Mat Fac Fac Was Matter Collected 2183 | 220 134 200 1363 118 148 . Remotely . | . . . . . . . Salvage Created 3958 | . 236 1121 2344 99 158 . Parts 236 | . 19 71 134 8 4 . Haulers Intercepted 5 | . . 2 3 . . . Recyclers Shooed 9 | . 1 4 4 . . . Parts Field Recycled . | . . . . . . . Retrieved Matter . | . . . . . . . Parts Self-Destructed . | . . . . . . . Prevented . | . . . . . . . Kills | -11 -10 -9 -8 -7 -6 -6 ------- Run | Yrd Mat Mat Mat Fac Fac Was Combat Hostiles Destroyed 64 | . 4 19 35 3 3 . Guns 37 | . 4 19 12 . 2 . Cannons 27 | . . . 23 3 1 . Classes Destroyed 16 | . 4 5 6 1 . . Worker 13 | . 1 4 7 . 1 . Builder 3 | . . . 3 . . . Tunneler 1 | . 1 . . . . . Hauler 5 | . . 2 3 . . . Recycler 9 | . . 3 6 . . . Mechanic 3 | . . . 2 . 1 . Operator 2 | . . . 1 1 . . Watcher 8 | . 1 2 5 . . . Swarmer 10 | . . 7 3 . . . Grunt 31 | . 4 7 18 . 2 . Brawler 1 | . . . 1 . . . Duelist 1 | . . 1 . . . . Sentry 16 | . . 4 10 2 . . Hunter 2 | . . . 2 . . . Programmer 2 | . . . . 1 1 . Heavy 1 | . . . 1 . . . Best Kill Streak 14 | . 4 4 14 1 3 . Combat Bots Only 4 | . 2 3 4 1 2 . Max Kills in Single Turn 2 | . 1 1 2 1 1 . Gunslinging . | . . . . . . . Exploded . | . . . . . . . Melee . | . . . . . . . Uniques/NPCs Destroyed . | . . . . . . . Combat | -11 -10 -9 -8 -7 -6 -6 -------- Run | Yrd Mat Mat Mat Fac Fac Was Hostile Shots Fired 457 | . 25 67 194 121 30 20 Missed 129 | . 3 16 55 42 12 1 Damage Taken 4974 | . 287 630 2483 392 311 871 Core 1398 | . 85 230 235 67 15 766 Absorbed by Shields 297 | . . . . 186 84 27 Redirected to Shielding 43 | . . 3 40 . . . Regen/Repaired (Parts) 29 | . . . 18 11 . . Core Remaining (%) 71 | 100 66 42 57 90 . . Volleys Fired 345 | . 26 89 184 27 18 1 Largest 2 | . 2 2 2 1 2 1 Hottest 122 | . 70 76 122 60 122 65 Shots Fired 636 | . 52 178 351 27 27 1 Gun 446 | . 52 178 198 . 18 . Cannon 190 | . . . 153 27 9 1 Launcher . | . . . . . . . Special . | . . . . . . . Kinetic 333 | . 26 89 182 27 9 . Thermal 303 | . 26 89 169 . 18 1 Explosive . | . . . . . . . Electromagnetic . | . . . . . . . Robot Hit Streak 31 | . 17 14 20 31 13 4 Robot Miss Streak 6 | . 3 3 6 2 1 . Penetration Max . | . . . . . . . Secondary Targets 3 | . 1 1 1 . . . Max Gunslinging Chain 1 | . 1 1 1 . . . Shots Hit Robots 433 | . 36 122 235 19 20 1 Core Hits 182 | . 16 55 99 4 8 . Critical Kills . | . . . . . . . Critical Parts Destroyed . | . . . . . . . Critical Strikes 18 | . . 4 9 2 3 . Burn 13 | . . 4 7 . 2 . Blast 5 | . . . 2 2 1 . Melee Attacks . | . . . . . . . Impact . | . . . . . . . Slashing . | . . . . . . . Piercing . | . . . . . . . Sneak Attacks . | . . . . . . . Combat Hostiles . | . . . . . . . Follow-up Attacks . | . . . . . . . Damage Inflicted 8264 | . 345 1335 4681 1003 835 65 Guns 4103 | . 345 1335 2166 . 257 . Cannons 3817 | . . . 2508 985 298 26 Explosions 280 | . . . . . 280 . Melee . | . . . . . . . Ramming 64 | . . . 7 18 . 39 Kinetic 4666 | . 139 477 2767 985 298 . Thermal 3254 | . 206 858 1907 . 257 26 Explosive 280 | . . . . . 280 . Electromagnetic . | . . . . . . . Impact . | . . . . . . . Slashing . | . . . . . . . Piercing . | . . . . . . . Highest Corruption 13 | . . . . 2 . 13 Average Corruption 2 | . . . . 1 . 8 Corruption Purged . | . . . . . . . Corruption Blocked . | . . . . . . . Effects 13 | . . . . 9 . 4 Message Errors 4 | . . . . 3 . 1 Energy Discharges 3 | . . . . 3 . . Parts Rejected 1 | . . . . . . 1 Data Loss (minor) 3 | . . . . 2 . 1 Data Loss (major) 2 | . . . . 1 . 1 Overload Shots . | . . . . . . . Overflow Damage 190 | . . . 96 45 49 . Projectiles 188 | . . . 96 45 47 . Explosions 2 | . . . . . 2 . Melee . | . . . . . . . Knockbacks 28 | . . . 25 . 3 . Impact . | . . . . . . . Kinetic 24 | . . . 21 . 3 . Secondary 4 | . . . 4 . . . Self-Inflicted Damage 92 | . . . 3 9 62 18 Shots 1 | . . . . . 1 . Rammed 13 | . . . 2 1 . 10 Targets Rammed 13 | . . . 2 1 . 10 Kicked . | . . . . . . . Crushed . | . . . . . . . Highest Temperature 134 | . 134 37 110 . . . Average Temperature 27 | . 49 12 27 . . . Received Heat Transfer 1431 | . 159 144 936 84 108 . Siege Activations . | . . . . . . . Robots Corrupted . | . . . . . . . Combat Hostiles . | . . . . . . . Parts Fried . | . . . . . . . Impact Corruptions . | . . . . . . . Robots Melted . | . . . . . . . Combat Hostiles . | . . . . . . . Parts Melted 13 | . 1 5 5 . 2 . Heat Transferred 8811 | . 486 2664 4958 . 666 37 Parts Sabotaged . | . . . . . . . Parts Stolen . | . . . . . . . Parts Stripped . | . . . . . . . Power Chain Reactions . | . . . . . . . Alert | -11 -10 -9 -8 -7 -6 -6 ------- Run | Yrd Mat Mat Mat Fac Fac Was Peak Influence 547 | . 167 357 547 155 114 15 Initial 147 | . . 9 147 133 25 . Average 165 | . 79 190 290 55 22 1 Maximum Alert Level 2 | . . 1 2 . . . Low Security (%) 61 | 100 100 46 25 100 100 100 Level 1 30 | . . 54 54 . . . Level 2 7 | . . . 19 . . . Level 3 . | . . . . . . . Level 4 . | . . . . . . . Level 5 . | . . . . . . . High Security . | . . . . . . . Max Security . | . . . . . . . Squads Dispatched 10 | . 2 . 4 3 1 . Investigation 3 | . 2 . 1 . . . Extermination 2 | . . . . 1 1 . Reinforcement 4 | . . . 2 2 . . Assault . | . . . . . . . Garrison 1 | . . . 1 . . . Intercept . | . . . . . . . Searches Triggered . | . . . . . . . Construction Impeded . | . . . . . . . Haulers Reinforced . | . . . . . . . Active Scanning Responses . | . . . . . . . Cargo Convoy Interrupts . | . . . . . . . Stealth | -11 -10 -9 -8 -7 -6 -6 --------- Run | Yrd Mat Mat Mat Fac Fac Was Distress Signals 5 | . 1 3 1 . . . Communications Jammed . | . . . . . . . Distress Signals . | . . . . . . . Times Spotted 103 | . 10 34 46 3 4 6 Peak Tracking Total 6 | . 2 6 5 1 2 6 Tactical Retreats 6 | . 1 3 1 . . 1 Traps | -11 -10 -9 -8 -7 -6 -6 ------- Run | Yrd Mat Mat Mat Fac Fac Was Traps Triggered 5 | . 1 . 2 . 2 . Indirectly . | . . . . . . . Trap Hack Attempts . | . . . . . . . Triggered . | . . . . . . . Disarmed . | . . . . . . . Reprogrammed . | . . . . . . . Reused . | . . . . . . . Traps Extracted . | . . . . . . . Installed . | . . . . . . . Triggered . | . . . . . . . Machines | -11 -10 -9 -8 -7 -6 -6 ---------- Run | Yrd Mat Mat Mat Fac Fac Was Machines Disabled 3 | . . . . 1 2 . Max in Single Turn 2 | . . . . 1 2 . Garrison Access 3 | . . . 1 1 1 . Machines Repaired . | . . . . . . . Machines Dismantled . | . . . . . . . Machines Sabotaged . | . . . . . . . Overloaded Fab Kills . | . . . . . . . Hacking | -11 -10 -9 -8 -7 -6 -6 --------- Run | Yrd Mat Mat Mat Fac Fac Was Machines Accessed 43 | . 8 10 15 7 3 . Terminals 31 | . 8 9 10 4 . . Fabricators 2 | . . . . 1 1 . Repair Stations 2 | . . . 1 1 . . Recycling Units 3 | . . . 2 . 1 . Scanalyzers 2 | . . 1 1 . . . Garrison Access 3 | . . . 1 1 1 . Total Hacks 121 | . 30 28 42 13 8 . Successful 52 | . 7 11 28 4 2 . Failed 66 | . 22 16 13 9 6 . Catastrophic 16 | . 5 3 2 4 2 . Database Lockouts 3 | . 1 1 1 . . . Manual 92 | . 30 24 30 8 . . Terminals 94 | . 30 25 31 8 . . Fabricators 2 | . . . . 1 1 . Repair Stations 4 | . . . 2 2 . . Recycling Units 10 | . . . 5 . 5 . Scanalyzers 5 | . . 3 2 . . . Garrison Access 6 | . . . 2 2 2 . Terminal Hacks 19 | . 3 3 12 1 . . Record 1 | . . . 1 . . . Robot Analysis 9 | . 2 3 4 . . . Prototype ID Bank 1 | . . . 1 . . . Terminal Index 1 | . . . 1 . . . Recycling Unit Index 1 | . . . 1 . . . Alert Level 1 | . . . 1 . . . Unreport Threat 3 | . . . 2 1 . . Locate Traps 1 | . . . 1 . . . Recall Investigation 1 | . 1 . . . . . Fabricator Hacks . | . . . . . . . Repair Station Hacks 4 | . . . 2 2 . . Scan Component 2 | . . . 1 1 . . Repair 2 | . . . 1 1 . . Recycling Unit Hacks 3 | . . . 2 . 1 . Report Inventory 3 | . . . 2 . 1 . Scanalyzer 4 | . . 2 2 . . . Insert Component 2 | . . 1 1 . . . Analyze 2 | . . 1 1 . . . Garrison Access Hacks 3 | . . . 1 1 1 . Seal Access 3 | . . . 1 1 1 . Unauthorized Hacks 19 | . 4 6 9 . . . Terminals 16 | . 4 6 6 . . . Assimilate 2 | . 1 1 . . . . Botnet 13 | . 3 4 6 . . . Operators 1 | . . 1 . . . . Fabricators . | . . . . . . . Repair Stations . | . . . . . . . Recycling Units 2 | . . . 2 . . . Reject 2 | . . . 2 . . . Scanalyzers . | . . . . . . . Garrison Access 1 | . . . 1 . . . Intercept 1 | . . . 1 . . . Data Cores Recovered . | . . . . . . . Used . | . . . . . . . Hacking Detections 41 | . 8 10 14 6 3 . Full Trace Events 2 | . 2 . . . . . Feedback Events . | . . . . . . . Feedback Blocked . | . . . . . . . Robot Schematics Acquired . | . . . . . . . Robots Built . | . . . . . . . Authchips . | . . . . . . . Time . | . . . . . . . Total Robot Build Rating . | . . . . . . . Part Schematics Acquired 2 | . . 1 1 . . . Parts Built . | . . . . . . . Authchips . | . . . . . . . Time . | . . . . . . . Total Part Build Rating . | . . . . . . . Parts Repaired 2 | . . . 1 1 . . Time 54 | . . . 38 16 . . Parts Recycled . | . . . . . . . Recycled Matter . | . . . . . . . Retrieved Matter . | . . . . . . . Retrieved Components . | . . . . . . . Parts Scanalyzed 2 | . . 1 1 . . . Part Schematics Acquired 2 | . . 1 1 . . . Parts Damaged 1 | . . . 1 . . . Bothacking | -11 -10 -9 -8 -7 -6 -6 ------------ Run | Yrd Mat Mat Mat Fac Fac Was Used RIF Installer . | . . . . . . . Robots Hacked . | . . . . . . . Non-combat . | . . . . . . . Combat . | . . . . . . . Robot Hacks Applied . | . . . . . . . Relay Couplers Released . | . . . . . . . Fabnet Peak Effective % . | . . . . . . . Robots Rewired . | . . . . . . . Allies Hacked . | . . . . . . . Hacks Repelled . | . . . . . . . Allies | -11 -10 -9 -8 -7 -6 -6 -------- Run | Yrd Mat Mat Mat Fac Fac Was Total Allies 14 | . . 1 . 12 . 1 Largest Group 4 | . . 1 1 4 . 1 Highest-Rated Group 107 | . . 10 10 107 . 31 Highest-Rated Ally 31 | . . 10 10 31 . 31 Total Orders . | . . . . . . . Ally Attacks 51 | . . . . 44 . 7 Total Damage 708 | . . . . 580 . 128 Kills 7 | . . . . 7 . . Allies Corrupted . | . . . . . . . Allies Melted . | . . . . . . . Intel | -11 -10 -9 -8 -7 -6 -6 ------- Run | Yrd Mat Mat Mat Fac Fac Was Robot Analysis Total 9 | . 2 3 4 . . . Derelict Logs Recovered . | . . . . . . . Drone Launches . | . . . . . . . Drone Recoveries . | . . . . . . . Exploration | -11 -10 -9 -8 -7 -6 -6 ------------- Run | Yrd Mat Mat Mat Fac Fac Was Turns Passed 6256 | 66 488 1050 2452 1112 943 145 Spaces Moved 4338 | 53 485 707 1573 790 600 130 Core 29 | 20 . . . . . 9 Treads . | . . . . . . . Legs . | . . . . . . . Wheels 3715 | 33 485 707 979 790 600 121 Hover 594 | . . . 594 . . . Flight . | . . . . . . . Fastest Speed 50 | 50 80 80 83 125 95 50 Average Speed 102 | 95 80 92 104 125 100 84 Slowest Speed 290 | 150 80 110 290 125 110 110 Overloaded Moves . | . . . . . . . Propulsion Burnouts . | . . . . . . . Robots Hopped . | . . . . . . . Cave-ins Triggered . | . . . . . . . Exploration Rate (%) 45 | 4 78 63 94 16 8 58 Regions Visited 6 Branch Regions . Pre-discovered Areas . | . . . . . . . Known Exits Taken 2 | . . . 1 1 . . Unknown Exits Taken 3 | 1 1 1 . . . . Scrap Searched . | . . . . . . . Spaces Dug 7 | . . . 5 2 . . Terrain Destroyed 95 | . . . 30 11 54 . Melee . | . . . . . . . Projectile 44 | . . . 30 11 3 . AOE 51 | . . . . . 51 . Terrain Rammed . | . . . . . . . Walls Destroyed . | . . . . . . . Machines Disabled . | . . . . . . . Actions | -11 -10 -9 -8 -7 -6 -6 --------- Run | Yrd Mat Mat Mat Fac Fac Was Total 5535 | 65 539 948 2034 874 913 162 Wait 609 | . 6 109 156 47 278 13 Move 4333 | 52 484 706 1572 789 600 130 Hop . | . . . . . . . Pick Up 52 | 7 5 11 22 2 5 . Fast Attach 54 | 5 5 7 28 3 3 3 Attach 26 | 1 1 1 14 1 4 4 Detach 19 | . 4 1 13 . 1 . Swap 13 | . 2 5 5 1 . . Drop 71 | . 6 19 38 3 4 1 Fire 345 | . 26 89 184 27 18 1 Melee . | . . . . . . . Ram 13 | . . . 2 1 . 10 Kick . | . . . . . . . Crush . | . . . . . . . Escape Stasis . | . . . . . . . Rewire . | . . . . . . . Trap . | . . . . . . . Miscellaneous . | . . . . . . . Route ------- -11/Scrapyard -10/Materials (discovered 3 exits: *Mat x2 / [*Min]) -9/Materials (discovered 3 exits: *Mat x2 / [*Min]) -8/Materials (discovered 5 exits: *Fac x3 / *Sto x2) -7/Factory -6/Factory -6/Waste History --------- Turn | Location | Event 2 | -11/Scrapyard | Met Revision 17 41 | -11/Scrapyard | Discovered new exit (range 13) 67 | -11/Scrapyard | Entered Materials 273 | -10/Materials | Discovered new exit (range 10) 325 | -10/Materials | Build established: Mutant 505 | -10/Materials | Discovered new exit (range 7) 542 | -10/Materials | Discovered new exit (range 11) 552 | -10/Materials | Central database locked down 555 | -10/Materials | Entered another Materials area 555 | -9/Materials | Evolved 2 slots: Utility x2 926 | -9/Materials | Discovered new exit (range 16) 980 | -9/Materials | Build established: Scavenger-Mutant 1120 | -9/Materials | Core integrity fell below 50% 1255 | -9/Materials | Discovered new exit (range 8) 1548 | -9/Materials | Discovered new exit (range 16) 1591 | -9/Materials | Central database locked down 1605 | -9/Materials | Entered another Materials area 1605 | -8/Materials | Accompanied by 1 ally 1605 | -8/Materials | Evolved 2 slots: Propulsion x1, Utility x1 2178 | -8/Materials | Discovered new exit (range 14) 2225 | -8/Materials | Garrison activated, responded to threat 2239 | -8/Materials | Build established: Mutant 2393 | -8/Materials | Discovered new exit (range 8) 3047 | -8/Materials | Central database locked down 3156 | -8/Materials | Discovered new exit (range 15) 3205 | -8/Materials | Repaired Imp. Sensor Array 3634 | -8/Materials | Build established: Scavenger-Mutant 3707 | -8/Materials | Lost 5 parts (2n1u2w) 3733 | -8/Materials | Found Prototype Device 3733 | -8/Materials | Identified Active Sensor Suite 3888 | -8/Materials | Discovered new exit (range 9) 3890 | -8/Materials | Discovered new exit (range 16) 3908 | -8/Materials | Identified exit to Factory 3918 | -8/Materials | Identified exit to Storage 4018 | -8/Materials | Build established: Scavenger-Skirmisher 4057 | -8/Materials | Entered Factory 4057 | -7/Factory | Evolved 2 slots: Utility x2 4266 | -7/Factory | Lost 3 allies 4825 | -7/Factory | Repaired Shield Generator 5026 | -7/Factory | Discovered new exit (range 15) 5166 | -7/Factory | Identified exit to Factory 5169 | -7/Factory | Entered another Factory area 5169 | -6/Factory | Evolved 2 slots: Propulsion x1, Utility x1 6112 | -6/Factory | Sucked down chute 6112 | -6/Factory | Entered Waste 6113 | -6/Waste | Met a frightened Derelict 6120 | -6/Waste | Spotted C-40 Crusher 6127 | -6/Waste | EMP discharged 6128 | -6/Waste | Crushed by Compactor (1 part destroyed, 2 dropped) 6133 | -6/Waste | Crushed by Compactor (1 part destroyed, 1 dropped) 6144 | -6/Waste | Crushed by Compactor (0 parts destroyed, 2 dropped) 6155 | -6/Waste | Spotted C-40 Crusher 6164 | -6/Waste | Lost 3 parts (3n) 6168 | -6/Waste | Crushed by Compactor (1 part destroyed, 1 dropped) 6169 | -6/Waste | Crushed by Compactor (1 part destroyed) 6178 | -6/Waste | Spotted C-40 Crusher 6183 | -6/Waste | Spotted C-40 Crusher 6184 | -6/Waste | Spotted C-40 Crusher 6200 | -6/Waste | Lost 3 parts (1n2u) 6227 | -6/Waste | EMP discharged 6227 | -6/Waste | System corruption reached 10% 6236 | -6/Waste | Crushed by Compactor (1 part destroyed, 1 dropped) 6239 | -6/Waste | Spotted C-40 Crusher 6248 | -6/Waste | Core integrity fell below 50% 6253 | -6/Waste | Crushed by Compactor (1 part destroyed) 6254 | -6/Waste | Core integrity fell below 20% 6255 | -6/Waste | Crushed by Compactor (1 part destroyed) 6257 | -6/Waste | Self-destructed Last Messages --------------- 06211_ Identified Imp. KE Penetrator. 06213_ Dropped Broken Imp. KE Penetrator. 06217_ ALERT: Foreign system detected. Charging EMP. 06226_ System corrupted: Substantial component data lost. 06227_ System corrupted (+5). 06236_ Wheel crushed. 06236_ Hacking Suite crushed. 06237_ Critical hit (Destroy). 06237_ Active Sensor Suite destroyed. 06241_ Slammed into C-40 Crusher. 06242_ System corrupted: Component data lost. 06242_ Slammed into C-40 Crusher. 06244_ Destabilizing: System corrupted (+1). 06245_ Slammed into C-40 Crusher. 06245_ Destabilizing: Core damaged (-8). 06246_ Slammed into C-40 Crusher. 06253_ Shock Rifle crushed. 06255_ Hvy. Ion Cannon crushed. Map ----- +----------------------------------------------------+ | ?????????????????????????????????????????????????? | | ?????????????????????????????????????????????????? | | ?????????????????????????????????????????????????? | | ?????????????????????????????????????????????????? | | ?????????????????????????????????????????????????? | | ?????????????????????????????????????????????????? | | ?????????????????????????????????????????????????? | | ?????????????????????????????????????????????????? | | ?????????????????????????????????????????????????? | | ?????????????????????????????????????????????????? | | ?????????????????????????????????????????????????? | | ?????????????????????????????????????????????????? | | ?????????????????????????????????????????????????? | | ???????????????????##########????????????????????? | | ???????????????????# #????????????????????? | | ???????????????????# [ #????????????????????? | | ???????????????????# #????????????????????? | | ???????????????????# #????????????????????? | | ???????????????????# #????????????????????? | | ???????????????????# #????????????????????? | | ???????????????????# CCCC #????????????????????? | | ###???????#####????# CCCC #????????????????????? | | #??????# #????###CCCC###????????????????????? | | #??????# #??????#CCCC#??????????????????????? | | #??????# #??????# CC #??????????????????????? | | #??????# #??????# CC@#??????????????????????? | | #??????#! #??????# CC#??????????????????????? | | #??????# #??????# CC#??????????????????????? | | #??????# #??????# #??????????????????????? | | #??????# #??????# #??????????????????????? | | #??????# #??????# #??????????????????????? | | #??????# #??????# #??????????????????????? | | #??????# #??????# #??????????????????????? | | !#??????# #??????# #??????????????????????? | | #??????# #??????# #??????????????????????? | | ######## * #??????# #??????????????????????? | | *!!#??????# #??????????????????????? | | #??????# #??????????????????????? | | #??????# #??????????????????????? | | #??????# #??????????????????????? | | ######## #??????# #??????????????????????? | | #??????# #??????# #??????????????????????? | | #??????# #??????# #??????????????????????? | | #??????# #??????# #??????????????????????? | | ######## ######## ######## ???????????? | | ???????????? | | ???????????? | | ???????????? | | ! ???????????? | | ######## ######## ######## ???????????? | +----------------------------------------------------+ Best States ------------- Heat Dissipation 64 Energy Generation 18 Energy Capacity 475 Matter Stores 300 Matter Capacity 300 Sight Range 16 Robot Scan Range 20 Terrain Scan Density 10 Armor Coverage 225 Core Shielding 20 Evasion (%) 50 Targeting Accuracy 5 Offensive Hacking 10 Item Schematics ----------------- Med. Laser | -9/Materials | Scanalyzed Assault Cannon | -8/Materials | Scanalyzed Robot Schematics ------------------ None Fabricated ------------ Nothing Alien Tech Used ----------------- None Achievements -------------- None Challenges ------------ None Game ------ Seed SurveybotAntimatterDriver Manual? 0 Play Time 00:47:41 Cumulative 140.2 hours Start 2024.04.02 @ 16:19:27 End 2024.04.03 @ 00:53:26 Sessions 2 Manual Loads 0 Difficulty Rogue Special Mode Halloween2020/ForbiddenLore Game No. 138 Rogue 138 Adventurer 0 Explorer 0 Win Type - Total 0 Types 0/0/0/0/0/0/0/0/0 Lore% 47 Gallery% 59 Achievement% 41 Wizard Run 0 Options --------- Layout 2 ASCII 1 Keyboard 1 Movement Numpad Keybinds 0 Fullscreen 2 Font 32/TamsynBold Map View 50x44 Zoom Use 0% Tactical HUD 1 Map Filters NONE Filters NONE Steam 1 RUN: 6c437a08-7a0f-409c-9498-fbd2877cadcb